Body Name,Service Code,Expenditure Category,Payment Date,Transaction Number,Supplier,Net Amount
Barrow Borough Council,Barrow Town Deal,Professional fees,01-Jul-2021,200051844,32West Ltd,"1,025.00"
Barrow Borough Council,Playground,Parks & Playgrounds Inspections & maintenance - contract,15-Jul-2021,200051990,Continental Landscapes Ltd,"16,368.79"
Barrow Borough Council,The markets,Electricity,21-Jul-2021,200052077,NPower,922.37
Barrow Borough Council,Estates management,Buildings repairs and maintenance,01-Jul-2021,200051869,Bill Caulfield Electrical,"2,666.07"
Barrow Borough Council,Capitalised Planned Maintenance,Heating,08-Jul-2021,200051908,Plumbing Trade Supplies,"7,110.27"
Barrow Borough Council,Tenant demand maintenance - HRA,Gas works,08-Jul-2021,200051933,Sure Maintenance,"5,329.85"
Barrow Borough Council,Finance Department,Professional fees,08-Jul-2021,200051919,Cumbria County Council,750.00
Barrow Borough Council,Capitalised Planned Maintenance,Rewires,21-Jul-2021,200052090,Rexel UK Ltd,"2,306.22"
Barrow Borough Council,Housing repairs control account,Housing repairs invoices,29-Jul-2021,200052156,Hughes Brothers,"15,021.11"
Barrow Borough Council,Coast protection,Grounds maintenance - other works,08-Jul-2021,200051942,Ashlea Ltd,"1,269.78"
Barrow Borough Council,Streetcare Team,Consultants' fees,08-Jul-2021,200051940,APSE,"1,600.00"
Barrow Borough Council,Estates management,Solicitors fees,08-Jul-2021,200051954,Mr Wilson Horne,"1,250.00"
Barrow Borough Council,Craven house,Electricity,21-Jul-2021,200052077,NPower,"7,676.79"
Barrow Borough Council,Parks and open spaces,Grounds maintenance - schedule of works,15-Jul-2021,200051990,Continental Landscapes Ltd,"33,760.10"
Barrow Borough Council,Recycling,Greenwaste recycling,08-Jul-2021,200051936,FCC Enviroment Services (UK) Ltd,"6,475.73"
Barrow Borough Council,Capitalised Planned Maintenance,Doors and windows,01-Jul-2021,200051889,Wrekin Windows,"4,018.75"
Barrow Borough Council,Capitalised Planned Maintenance,Rewires,01-Jul-2021,200051867,Keith Wilson Elec Con Ltd,"6,451.12"
Barrow Borough Council,Harding Rise Business Centre,Electricity,08-Jul-2021,200051921,NPower,997.13
Barrow Borough Council,Dock Museum HLF Phase 2,Professional fees,21-Jul-2021,200052048,Craig & Meyer Architects,"4,100.00"
Barrow Borough Council,Corporate management,Professional fees,01-Jul-2021,200051844,32West Ltd,"2,625.00"
Barrow Borough Council,Parks and open spaces,Grounds maintenance - other works,15-Jul-2021,200051990,Continental Landscapes Ltd,752.23
Barrow Borough Council,The mall and shops,Water,29-Jul-2021,200052128,SES Business Water,"2,904.39"
Barrow Borough Council,Estates management,Buildings repairs and maintenance,08-Jul-2021,200051926,Andrew Thompson,830.00
Barrow Borough Council,Heritage Action Zone,Clothing and uniforms,29-Jul-2021,200052122,Site Supply Company Ltd,"1,004.30"
Barrow Borough Council,Dock museum,Electricity,08-Jul-2021,200051921,NPower,"1,638.00"
Barrow Borough Council,Barrow town hall,Building cleaning,08-Jul-2021,200051929,Associated Cleaning Contractors,"4,186.58"
Barrow Borough Council,Housing repairs control account,Housing repairs invoices,21-Jul-2021,200052089,Hughes Brothers,"15,850.51"
Barrow Borough Council,Housing repairs control account,Housing repairs invoices,21-Jul-2021,200052059,Howdens Joinery Ltd,"1,020.94"
Barrow Borough Council,Information technology,Data Line Rental,29-Jul-2021,200052118,Nominet UK,760.94
Barrow Borough Council,HRA Estates,Grounds maintenance - schedule of works,15-Jul-2021,200051990,Continental Landscapes Ltd,"5,638.33"
Barrow Borough Council,Finance Department,Software maintenance,01-Jul-2021,200051836,Version 1,"4,507.64"
Barrow Borough Council,Capitalised Planned Maintenance,Doors and windows,21-Jul-2021,200052043,Richmond Joiners & Builders Ltd,"36,734.11"
Barrow Borough Council,Capitalised Planned Maintenance,Doors and windows,01-Jul-2021,200051889,Wrekin Windows,"24,905.44"
Barrow Borough Council,Capitalised Planned Maintenance,Rewires,21-Jul-2021,200052065,Keith Wilson Elec Con Ltd,"10,215.50"
Barrow Borough Council,Tenant demand maintenance - HRA,Disrepair,01-Jul-2021,200051851,Progression Solicitors,"1,462.50"
Barrow Borough Council,Democratic representation and management,Solicitors fees,21-Jul-2021,200052036,Wilkin Chapman LLP,"4,000.00"
Barrow Borough Council,Major works maintenance - HRA,Repointing Walney,15-Jul-2021,200051983,DLP Services (Northern) Ltd,"9,070.82"
Barrow Borough Council,Forum 28,Professional fees,15-Jul-2021,200051978,Spektrix Ltd,804.85
Barrow Borough Council,Cemeteries,Grounds maintenance - schedule of works,08-Jul-2021,200051898,Continental Landscapes Ltd,"11,459.58"
Barrow Borough Council,Capitalised Planned Maintenance,Rewires,01-Jul-2021,200051830,Rexel UK Ltd,"1,259.63"
Barrow Borough Council,Barrow Town Deal,Professional fees,29-Jul-2021,200052115,Hatch Associates Ltd,"10,377.00"
Barrow Borough Council,Telephones Holding A/C,Telephone charges paid,29-Jul-2021,200052159,Liberata Uk Ltd,690.80
Barrow Borough Council,The park leisure centre,Professional fees,08-Jul-2021,200051953,CAP2,"5,520.00"
Barrow Borough Council,Cemeteries,Software maintenance,29-Jul-2021,200052143,Gower Consultants Ltd,909.11
Barrow Borough Council,Barrow town hall,Electricity,08-Jul-2021,200051921,NPower,"2,352.97"
Barrow Borough Council,Disabled Facilities Grant,Grants,01-Jul-2021,200051834,Airey Property Developments & Adaptations,"3,495.00"
Barrow Borough Council,Housing repairs control account,Housing repairs invoices,29-Jul-2021,200052109,Allison Construction,"5,952.00"
Barrow Borough Council,Barrow town hall,Electricity,21-Jul-2021,200052077,NPower,"2,259.19"
Barrow Borough Council,Voids maintenance - HRA,Void repairs,29-Jul-2021,200052156,Hughes Brothers,"13,223.94"
Barrow Borough Council,Major works maintenance - HRA,Adaptations,21-Jul-2021,200052080,DLP Services (Northern) Ltd,"1,737.02"
Barrow Borough Council,Registration of electors,Computer hardware maintenance,21-Jul-2021,200052092,The Document Management Group Ltd,650.00
Barrow Borough Council,Emergency planning,Hardship Relief/Grant COVID19,29-Jul-2021,200052119,Spring Mount Walney,"10,000.00"
Barrow Borough Council,Off street car parking,Buildings repairs and maintenance,29-Jul-2021,200052139,Peter Daw,"2,200.00"
Barrow Borough Council,RTB administration - HRA,Professional fees,15-Jul-2021,200052022,Lambert Smith Hampton,"1,050.00"
Barrow Borough Council,Housing repairs control account,Housing repairs invoices,08-Jul-2021,200051955,DAL Plumbing & Drainage Ltd,"1,200.00"
Barrow Borough Council,Harding Rise Business Centre,Building cleaning,08-Jul-2021,200051929,Associated Cleaning Contractors,693.33
Barrow Borough Council,Tenant demand maintenance - HRA,Gas works,15-Jul-2021,200052016,Sure Maintenance,"6,453.44"
Barrow Borough Council,Major works maintenance - HRA,Adaptations,08-Jul-2021,200051925,DLP Services (Northern) Ltd,"2,258.12"
Barrow Borough Council,Public conveniences,Building cleaning,01-Jul-2021,200051872,Growing Concerns,"3,531.17"
Barrow Borough Council,Streetcare Team,Consultants' fees,01-Jul-2021,200051841,APSE,"8,673.00"
Barrow Borough Council,Recycling,Greenwaste recycling,08-Jul-2021,200051936,FCC Enviroment Services (UK) Ltd,"29,939.00"
Barrow Borough Council,Cyclical maintenance - HRA,Electrical testing,21-Jul-2021,200052065,Keith Wilson Elec Con Ltd,"1,535.21"
Barrow Borough Council,From The Jam 09.04.21,Recoverable charges,29-Jul-2021,200052129,AGMP Ltd,-704.20
Barrow Borough Council,From The Jam 09.04.21,Hire of halls,29-Jul-2021,200052129,AGMP Ltd,"-1,160.00"
Barrow Borough Council,Emergency planning,Professional fees,01-Jul-2021,200051844,32West Ltd,"5,548.50"
Barrow Borough Council,Forum 28,Building cleaning,21-Jul-2021,200052079,Elior UK Ltd,"2,562.23"
Barrow Borough Council,Estates management,Buildings repairs and maintenance,21-Jul-2021,200052066,Bill Caulfield Electrical,901.95
Barrow Borough Council,Cyclical maintenance - HRA,Painting,15-Jul-2021,200051962,George Jones & Son (Contractors) Ltd,"10,826.67"
Barrow Borough Council,Parks and open spaces,Grounds maintenance - other works,08-Jul-2021,200051911,Tythe Barn Nurseries Ltd,"24,046.00"
Barrow Borough Council,Footpath Lighting,Electricity,21-Jul-2021,200052077,NPower,"1,916.56"
Barrow Borough Council,From The Jam 09.04.21,Admissions,29-Jul-2021,200052129,AGMP Ltd,"5,475.00"
Barrow Borough Council,Capitalised Planned Maintenance,Roofs,15-Jul-2021,200051983,DLP Services (Northern) Ltd,"9,070.82"
Barrow Borough Council,Capitalised Planned Maintenance,Roofs,15-Jul-2021,200051983,DLP Services (Northern) Ltd,"5,574.93"
Barrow Borough Council,Voids maintenance - HRA,Void repairs,29-Jul-2021,200052156,Hughes Brothers,"9,437.81"
Barrow Borough Council,Accelerated Towns Fund,Purchase of equipment,29-Jul-2021,200052120,Kedel Ltd,"10,476.97"
Barrow Borough Council,Dock museum,Electricity,21-Jul-2021,200052077,NPower,"1,765.11"
Barrow Borough Council,Disabled Facilities Grant,Grants,01-Jul-2021,200051834,Airey Property Developments & Adaptations,"3,460.00"
Barrow Borough Council,Disabled Facilities Grant,Grants,15-Jul-2021,200051987,Dolphin Stairlifts Cumbria,"2,595.00"
Barrow Borough Council,Tenant demand maintenance - HRA,Gas works,08-Jul-2021,200051933,Sure Maintenance,"15,133.50"
Barrow Borough Council,Recycling,Greenwaste recycling,08-Jul-2021,200051936,FCC Enviroment Services (UK) Ltd,"26,614.70"
Barrow Borough Council,Voids maintenance - HRA,Void repairs,08-Jul-2021,200051932,Hughes Brothers,"38,884.88"
Barrow Borough Council,Recycling,Greenwaste recycling,08-Jul-2021,200051936,FCC Enviroment Services (UK) Ltd,"21,454.46"
Barrow Borough Council,The markets,Electricity,08-Jul-2021,200051921,NPower,798.52
Barrow Borough Council,Salthouse Road Depot,Buildings repairs and maintenance,29-Jul-2021,200052114,Gilmour Fabrications,850.00
Barrow Borough Council,Cost of collection,Council tax collection,15-Jul-2021,200052020,Liberata Uk Ltd,"9,095.54"
Barrow Borough Council,Cost of collection,Council tax collection,15-Jul-2021,200052020,Liberata Uk Ltd,"1,063.10"
Barrow Borough Council,Emergency planning,Professional fees,15-Jul-2021,200051981,FGH Security Ltd,"2,259.58"
Barrow Borough Council,Private sector housing,Conferences and seminars,01-Jul-2021,200051876,CIEH,560.00
Barrow Borough Council,Capitalised Planned Maintenance,Rewires,21-Jul-2021,200052090,Rexel UK Ltd,660.35
Barrow Borough Council,Housing repairs control account,Housing repairs invoices,08-Jul-2021,200051932,Hughes Brothers,"14,852.07"
Barrow Borough Council,Democratic representation and management,Subscriptions,08-Jul-2021,200051922,District Councils Network,"1,004.00"
Barrow Borough Council,Recycling,Recycling collection and processing,21-Jul-2021,200052033,FCC Enviroment Services (UK) Ltd,"40,576.53"
Barrow Borough Council,Information technology,Software maintenance,15-Jul-2021,200051985,Bob's Business Ltd,"2,310.00"
Barrow Borough Council,Disabled Facilities Grant,Grants,21-Jul-2021,200052094,Airey Property Developments & Adaptations,808.30
Barrow Borough Council,IR personal account,Tax deducted - CIS tax,01-Jul-2021,200051884,Andrew Thompson,"-4,620.72"
Barrow Borough Council,Corporate support,Subscriptions,01-Jul-2021,200051837,Proactis,"2,200.00"
Barrow Borough Council,Cyclical maintenance - HRA,Painting,15-Jul-2021,200051962,George Jones & Son (Contractors) Ltd,828.00
Barrow Borough Council,Waste collection,Refuse collection - contract,21-Jul-2021,200052033,FCC Enviroment Services (UK) Ltd,"62,568.27"
Barrow Borough Council,Development control,Agency staff,15-Jul-2021,200051995,G2 Recruitment Solutions,987.13
Barrow Borough Council,Craven house,Building cleaning,08-Jul-2021,200051929,Associated Cleaning Contractors,595.26
Barrow Borough Council,Disabled Facilities Grant,Grants,15-Jul-2021,200051975,TK Access Solutions Ltd,"5,221.00"
Barrow Borough Council,Information technology,Data Line Rental,15-Jul-2021,200051997,Nominet UK,765.94
Barrow Borough Council,Capitalised Planned Maintenance,Heating,15-Jul-2021,200052016,Sure Maintenance,"59,765.32"
Barrow Borough Council,Emergency planning,Professional fees,29-Jul-2021,200052159,Liberata Uk Ltd,"6,059.00"
Barrow Borough Council,Estates management,Buildings repairs and maintenance,08-Jul-2021,200051923,Marsh Plant Hire & Contracting  Ltd,590.00
Barrow Borough Council,Housing repairs control account,Housing repairs invoices,08-Jul-2021,200051955,DAL Plumbing & Drainage Ltd,"2,500.00"
Barrow Borough Council,Democratic representation and management,Consultants' fees,08-Jul-2021,200051920,Lancaster City Council,"9,333.33"
Barrow Borough Council,Telephones Holding A/C,Telephone charges paid,08-Jul-2021,200051935,Liberata Uk Ltd,643.04
Barrow Borough Council,Cost of collection,Business rates collection,15-Jul-2021,200052020,Liberata Uk Ltd,"2,728.66"
Barrow Borough Council,Forum 28,Maintenance contracts - TSU,08-Jul-2021,200051895,Integral UK Ltd,"1,104.26"
Barrow Borough Council,Salthouse Road Depot,Electricity,21-Jul-2021,200052077,NPower,710.45
Barrow Borough Council,Voids maintenance - HRA,Void repairs,01-Jul-2021,200051829,Hughes Brothers,"1,103.76"
Barrow Borough Council,Cyclical maintenance - HRA,Painting,08-Jul-2021,200051909,George Jones & Son (Contractors) Ltd,"1,280.00"
Barrow Borough Council,Emergency planning,Professional fees,01-Jul-2021,200051882,FGH Security Ltd,"2,330.88"
Barrow Borough Council,Streetcare Team,Consultants' fees,01-Jul-2021,200051841,APSE,"8,755.00"
Barrow Borough Council,Development control,Agency staff,29-Jul-2021,200052117,G2 Recruitment Solutions,"1,000.38"
Barrow Borough Council,Housing Benefits Admin,Benefits private tenants,01-Jul-2021,200051833,Liberata Uk Ltd,550.36
Barrow Borough Council,Major works maintenance - HRA,Adaptations,01-Jul-2021,200051843,Coram Holding Ltd,"1,340.59"
Barrow Borough Council,Marina Village,Consultants' fees,01-Jul-2021,200051839,Stephenson Halliday,"2,950.00"
Barrow Borough Council,HRA administration,Management training,15-Jul-2021,200052006,CT & JL Services Ltd,"2,400.00"
Barrow Borough Council,Capitalised Planned Maintenance,Doors and windows,15-Jul-2021,200052029,Richmond Joiners & Builders Ltd,"2,909.82"
Barrow Borough Council,Housing repairs control account,Housing repairs invoices,15-Jul-2021,200052015,Hughes Brothers,"31,391.74"
Barrow Borough Council,Cemeteries,Grounds maintenance - other works,08-Jul-2021,200051898,Continental Landscapes Ltd,"3,322.21"
Barrow Borough Council,Development control,Agency staff,29-Jul-2021,200052117,G2 Recruitment Solutions,"1,874.88"
Barrow Borough Council,Estates management,Solicitors fees,08-Jul-2021,200051912,Brown Barron Solicitors,899.00
Barrow Borough Council,Housing repairs control account,Housing repairs invoices,15-Jul-2021,200051966,Wilko Retail Ltd,"1,230.00"
Barrow Borough Council,Tenant demand maintenance - HRA,Disrepair,01-Jul-2021,200051851,Progression Solicitors,"1,750.00"
Barrow Borough Council,Major works maintenance - HRA,Repointing Walney,15-Jul-2021,200051983,DLP Services (Northern) Ltd,807.31
Barrow Borough Council,Marina Village,Consultants' fees,29-Jul-2021,200052163,Cumbria County Council,"1,602.25"
Barrow Borough Council,Capitalised Planned Maintenance,Doors and windows,15-Jul-2021,200051983,DLP Services (Northern) Ltd,"2,119.61"
Barrow Borough Council,Major works maintenance - HRA,Adaptations,21-Jul-2021,200052041,Coram Holding Ltd,742.95
Barrow Borough Council,Marina Village,Professional fees,29-Jul-2021,200052115,Hatch Associates Ltd,"4,708.00"
Barrow Borough Council,Heritage Action Zone,HAZ Feasibility Studies,29-Jul-2021,200052123,Crosby Granger Architects,"12,406.00"
Barrow Borough Council,Dock museum,Electricity,08-Jul-2021,200051921,NPower,"1,510.49"
Barrow Borough Council,Forum 28,Electricity,21-Jul-2021,200052077,NPower,"4,547.42"
Barrow Borough Council,Public health inspection,Professional fees,29-Jul-2021,200052147,Little & Caine Ltd,"2,056.43"
Barrow Borough Council,The markets,Electricity,08-Jul-2021,200051921,NPower,815.79
Barrow Borough Council,Housing Benefits Admin,Solicitors fees,08-Jul-2021,200051912,Brown Barron Solicitors,705.25
Barrow Borough Council,Streetcare Team,Consultants' fees,01-Jul-2021,200051841,APSE,"6,200.00"
Barrow Borough Council,Footpath Lighting,Christmas illuminations,29-Jul-2021,200052125,Quality Construction (North West) Ltd,"1,210.00"
Barrow Borough Council,Housing repairs control account,Housing repairs invoices,21-Jul-2021,200052059,Howdens Joinery Ltd,"1,320.24"
Barrow Borough Council,Voids maintenance - HRA,Void repairs,01-Jul-2021,200051829,Hughes Brothers,"1,147.57"
Barrow Borough Council,Cyclical maintenance - HRA,Painting,01-Jul-2021,200051868,George Jones & Son (Contractors) Ltd,"1,536.00"
Barrow Borough Council,Marina Village,Professional fees,21-Jul-2021,200052081,Andrew Thompson,"1,001.00"
Barrow Borough Council,Street cleansing,Street cleansing,21-Jul-2021,200052033,FCC Enviroment Services (UK) Ltd,"50,718.08"
Barrow Borough Council,Development control,Solicitors fees,21-Jul-2021,200052051,Mr Wilson Horne,"1,125.00"
Barrow Borough Council,Voids maintenance - HRA,Void repairs,21-Jul-2021,200052089,Hughes Brothers,"12,137.10"
Barrow Borough Council,Heritage Action Zone,Professional fees,21-Jul-2021,200052034,John Coward Architects Ltd,"3,212.50"
Barrow Borough Council,Emergency planning,Professional fees,29-Jul-2021,200052153,FGH Security Ltd,"2,305.57"
Barrow Borough Council,Cyclical maintenance - HRA,Electrical testing,01-Jul-2021,200051867,Keith Wilson Elec Con Ltd,"1,610.99"
Barrow Borough Council,Waste collection,Refuse collection - other works,21-Jul-2021,200052033,FCC Enviroment Services (UK) Ltd,"1,182.39"
Barrow Borough Council,Estates management,Buildings repairs and maintenance,08-Jul-2021,200051910,Bill Caulfield Electrical,"1,542.06"
Barrow Borough Council,HRA Estates,Building cleaning,08-Jul-2021,200051929,Associated Cleaning Contractors,733.17
Barrow Borough Council,Cemetery,Professional fees,01-Jul-2021,200051879,Blackett-Ord Conservation Engineering,750.00
Barrow Borough Council,Emergency planning,Professional fees,29-Jul-2021,200052153,FGH Security Ltd,"2,185.25"
Barrow Borough Council,Crematorium,Grounds maintenance - other works,08-Jul-2021,200051898,Continental Landscapes Ltd,895.12
Barrow Borough Council,Housing repairs control account,Housing repairs invoices,08-Jul-2021,200051949,Horrocks (NorthWest) Ltd,"11,408.90"
Barrow Borough Council,Voids maintenance - HRA,Void repairs,21-Jul-2021,200052089,Hughes Brothers,637.68
Barrow Borough Council,Barrow BID,Other bodies expenditure,01-Jul-2021,200051832,Barrow BID Company Ltd,"2,483.25"
Barrow Borough Council,Forum 28,Water,01-Jul-2021,200051842,Water Plus Ltd,"1,386.59"
Barrow Borough Council,Waste collection,Refuse & Recycling Bins Boxes & Bags,15-Jul-2021,200051974,Growing Concerns,798.99
Barrow Borough Council,Current assets - stocks,Postage stock,21-Jul-2021,200052088,Pitney Bowes Ltd,"2,022.68"
Barrow Borough Council,Democratic representation and management,Subscriptions,01-Jul-2021,200051828,Suffolk County Council,665.00
Barrow Borough Council,Dock museum,Building cleaning,08-Jul-2021,200051924,Elior UK Ltd,"1,801.43"
Barrow Borough Council,Homeless families and dispersed accommodation - HRA,Furniture - dispersed accommodation,29-Jul-2021,200052102,Carpet Right,627.10
Barrow Borough Council,Housing repairs control account,Housing repairs invoices,21-Jul-2021,200052059,Howdens Joinery Ltd,"1,421.48"
Barrow Borough Council,Voids maintenance - HRA,Void repairs,15-Jul-2021,200052015,Hughes Brothers,"6,461.53"
Barrow Borough Council,Major works maintenance - HRA,Repointing Walney,15-Jul-2021,200051977,Baker Mallett,"1,962.17"
Barrow Borough Council,Cost of collection,Council tax collection,01-Jul-2021,200051833,Liberata Uk Ltd,750.50
Barrow Borough Council,Emergency planning,Professional fees,15-Jul-2021,200051981,FGH Security Ltd,"2,320.90"
Barrow Borough Council,Voids maintenance - HRA,Void repairs,01-Jul-2021,200051829,Hughes Brothers,"1,011.17"
Barrow Borough Council,Telephones Holding A/C,Telephone charges paid,29-Jul-2021,200052148,EE Ltd,"1,977.76"
Barrow Borough Council,Voids maintenance - HRA,Void repairs,29-Jul-2021,200052098,Howdens Joinery Ltd,"1,314.11"
Barrow Borough Council,Barrow town hall,Buildings repairs and maintenance,15-Jul-2021,200051970,FTS Fire & Secuirty Ltd,"1,811.17"
Barrow Borough Council,Housing repairs control account,Housing repairs invoices,01-Jul-2021,200051829,Hughes Brothers,"12,138.97"
Barrow Borough Council,Barrow Town Deal,Consultants' fees,29-Jul-2021,200052163,Cumbria County Council,"23,118.25"
Barrow Borough Council,Tenant demand maintenance - HRA,Central overheads,15-Jul-2021,200052015,Hughes Brothers,"28,550.68"
Barrow Borough Council,Local Council Tax Reduction Scheme (LCTRS),LCTRS Admin,15-Jul-2021,200052020,Liberata Uk Ltd,"1,063.10"
Barrow Borough Council,Craven house,Water,08-Jul-2021,200051941,Water Plus Ltd,"1,811.39"
Barrow Borough Council,Off street car parking,Buildings repairs and maintenance,21-Jul-2021,200052066,Bill Caulfield Electrical,"1,996.35"
Barrow Borough Council,Housing Benefits Admin,Software maintenance,15-Jul-2021,200052008,NEC Software Solutions UK Ltd,"3,060.00"
Barrow Borough Council,Barrow town hall,Building cleaning,08-Jul-2021,200051929,Associated Cleaning Contractors,551.60
Barrow Borough Council,HRA Estates,Cleaning - other,08-Jul-2021,200051929,Associated Cleaning Contractors,"3,968.65"
Barrow Borough Council,Disabled Facilities Grant,Grants,29-Jul-2021,200052104,Ocean Construction UK Ltd,"4,700.00"
Barrow Borough Council,Off street car parking,Buildings repairs and maintenance,29-Jul-2021,200052101,Furness Plastics,594.00
Barrow Borough Council,Housing Benefits Admin,Benefits private tenants,15-Jul-2021,200052020,Liberata Uk Ltd,"7,522.64"
Barrow Borough Council,Capitalised Planned Maintenance,Heating,15-Jul-2021,200051961,Plumbing Trade Supplies,"51,961.08"
Barrow Borough Council,Regeneration,Professional fees,29-Jul-2021,200052115,Hatch Associates Ltd,"48,852.00"
Barrow Borough Council,Information technology,Data Line Rental,15-Jul-2021,200051972,CAE Technology Services,"14,213.00"
Barrow Borough Council,Capitalised Planned Maintenance,Roofs,15-Jul-2021,200051977,Baker Mallett,948.60
Barrow Borough Council,Tenant demand maintenance - HRA,Routine Maintenance,01-Jul-2021,200051851,Progression Solicitors,521.25
Barrow Borough Council,Playground,Parks & Playgrounds Repairs & Maintenance,15-Jul-2021,200051990,Continental Landscapes Ltd,"1,702.66"
Barrow Borough Council,Information technology,Data Line Rental,08-Jul-2021,200051935,Liberata Uk Ltd,784.46
Barrow Borough Council,IR personal account,Tax deducted - CIS tax,01-Jul-2021,200051878,Cumbria Roofing Ulverston,"-2,000.00"
Barrow Borough Council,Marina Village,Professional fees,01-Jul-2021,200051884,Andrew Thompson,"17,840.57"
Barrow Borough Council,Forum 28,Building cleaning,01-Jul-2021,200051883,Elior UK Ltd,"3,347.97"
Barrow Borough Council,Off street car parking,Professional fees,21-Jul-2021,200052045,PARK NOW Ltd,639.22
Barrow Borough Council,Information technology,Data Line Rental,29-Jul-2021,200052159,Liberata Uk Ltd,784.46
Barrow Borough Council,Capitalised Planned Maintenance,Roofs,01-Jul-2021,200051878,Cumbria Roofing Ulverston,"25,871.00"
Barrow Borough Council,Capitalised Planned Maintenance,Doors and windows,15-Jul-2021,200052012,Wrekin Windows,"2,520.48"
Barrow Borough Council,Licensing,Equipment purchase,08-Jul-2021,200051931,EE Payment Processing,730.40
Barrow Borough Council,Off street car parking,Buildings repairs and maintenance,29-Jul-2021,200052095,Edmundson Electrical Ltd,"1,003.10"
Barrow Borough Council,Housing Benefits Admin,Benefits private tenants,15-Jul-2021,200052020,Liberata Uk Ltd,779.60
Barrow Borough Council,Homelessness,Homeless support funding,29-Jul-2021,200052158,Redacted Information,"1,850.00"
Barrow Borough Council,Dock museum,Maintenance contracts - TSU,08-Jul-2021,200051895,Integral UK Ltd,585.97
Barrow Borough Council,Licensing,Solicitors fees,08-Jul-2021,200051912,Brown Barron Solicitors,744.00
Barrow Borough Council,The markets,Buildings repairs and maintenance,08-Jul-2021,200051910,Bill Caulfield Electrical,"1,013.78"
Barrow Borough Council,Housing repairs control account,Housing repairs invoices,21-Jul-2021,200052059,Howdens Joinery Ltd,"1,158.27"
Barrow Borough Council,Barrow Town Deal,Consultants' fees,29-Jul-2021,200052163,Cumbria County Council,"2,581.60"
Barrow Borough Council,The park leisure centre,Professional fees,01-Jul-2021,200051844,32West Ltd,900.00
Barrow Borough Council,Barrow park,Grounds maintenance - schedule of works,15-Jul-2021,200051990,Continental Landscapes Ltd,"22,027.51"
Barrow Borough Council,Heritage Action Zone,Consultants' fees,15-Jul-2021,200052028,Buttress Architects Ltd,"11,155.00"
Barrow Borough Council,Street fittings,Bus shelter maintenance,29-Jul-2021,200052114,Gilmour Fabrications,985.00
Barrow Borough Council,Homelessness,Computer software purchase,29-Jul-2021,200052124,Locata Housing Services,"8,000.00"
Barrow Borough Council,Capitalised Planned Maintenance,Doors and windows,01-Jul-2021,200051847,Richmond Joiners & Builders Ltd,"3,830.05"
Barrow Borough Council,Police elections,Other expenses,15-Jul-2021,200051963,Bill Caulfield Electrical,"1,242.48"
Barrow Borough Council,Heritage Action Zone,Professional fees,29-Jul-2021,200052161,John Coward Architects Ltd,"1,250.00"
Barrow Borough Council,Heritage Action Zone,Landscaping,15-Jul-2021,200052003,Xanthe Quayle Landscape Architects Ltd,"8,583.34"
Barrow Borough Council,Public conveniences,Water,21-Jul-2021,200052093,Water Plus Ltd,"2,374.57"
Barrow Borough Council,Information technology,Data Line Rental,29-Jul-2021,200052110,Britannic Technologies Ltd,"5,813.00"
Barrow Borough Council,Voids maintenance - HRA,Void repairs,21-Jul-2021,200052089,Hughes Brothers,"10,738.11"
Barrow Borough Council,Marina Village,Consultants' fees,01-Jul-2021,200051892,Allied Exploration & Geotechnics Ltd,"31,756.95"
Barrow Borough Council,Local Council Tax Reduction Scheme (LCTRS),LCTRS Admin,15-Jul-2021,200052020,Liberata Uk Ltd,"9,095.54"
Barrow Borough Council,Crematorium,Software maintenance,29-Jul-2021,200052143,Gower Consultants Ltd,909.11
Barrow Borough Council,Street cleansing,Litter bins,29-Jul-2021,200052142,Broxap Ltd,"8,150.00"
Barrow Borough Council,IR personal account,Tax deducted - CIS tax,08-Jul-2021,200051949,Horrocks (NorthWest) Ltd,"-1,250.00"
Barrow Borough Council,Harding Rise Business Centre,Electricity,08-Jul-2021,200051921,NPower,989.59
Barrow Borough Council,Marina Village,Consultants' fees,01-Jul-2021,200051884,Andrew Thompson,"12,148.03"
Barrow Borough Council,Recycling,Greenwaste recycling,08-Jul-2021,200051936,FCC Enviroment Services (UK) Ltd,"11,430.21"
Barrow Borough Council,Estates management,Use of public transport,15-Jul-2021,200052004,Piel Ferries,"1,150.00"
Barrow Borough Council,Community involvement - HRA,Newsletters,15-Jul-2021,200051989,HSP Milners,"1,724.00"
Barrow Borough Council,Major works maintenance - HRA,Adaptations,21-Jul-2021,200052080,DLP Services (Northern) Ltd,768.32
Barrow Borough Council,Sports development and community recreation,Buildings repairs and maintenance,15-Jul-2021,200051963,Bill Caulfield Electrical,775.88
Barrow Borough Council,Streetcare Team,Consultants' fees,01-Jul-2021,200051841,APSE,"9,785.00"
Barrow Borough Council,Democratic services,Software maintenance,29-Jul-2021,200052144,Civica UK Ltd,"2,750.00"
Barrow Borough Council,Voids maintenance - HRA,Void repairs,01-Jul-2021,200051829,Hughes Brothers,"3,184.96"
Barrow Borough Council,Housing Benefits Admin,Benefits council tenants,15-Jul-2021,200052020,Liberata Uk Ltd,"2,660.94"
Barrow Borough Council,Homelessness,Homeless support funding,29-Jul-2021,200052112,Copperplane Ltd,760.00
Barrow Borough Council,Barrow town hall,Maintenance contracts - TSU,08-Jul-2021,200051895,Integral UK Ltd,572.86
Barrow Borough Council,Tenant demand maintenance - HRA,Gas works,08-Jul-2021,200051933,Sure Maintenance,"15,133.50"
Barrow Borough Council,Development control,Agency staff,01-Jul-2021,200051849,G2 Recruitment Solutions,"2,643.39"
Barrow Borough Council,Harding Rise Business Centre,Electricity,21-Jul-2021,200052077,NPower,970.84
Barrow Borough Council,Registration of electors,Software maintenance,21-Jul-2021,200052035,Democracy Counts Ltd,995.00
Barrow Borough Council,Crematorium,Maintenance contracts - venue,15-Jul-2021,200052031,JCH Plumbing & Heating Ltd,"7,500.00"
Barrow Borough Council,Licensing,Conferences and seminars,01-Jul-2021,200051873,Civica UK Ltd,"1,295.00"
Barrow Borough Council,Waste collection,Refuse & Recycling Bins Boxes & Bags,21-Jul-2021,200052082,MGB Plastics,"3,000.00"
Barrow Borough Council,Salthouse Road Depot,Electricity,08-Jul-2021,200051921,NPower,858.26
Barrow Borough Council,Mobile caretakers - HRA,Vehicles lease /rental,01-Jul-2021,200051885,Lex Autolease Ltd,"2,947.92"
Barrow Borough Council,Tenant demand maintenance - HRA,Gas works,15-Jul-2021,200052016,Sure Maintenance,"3,320.26"
Barrow Borough Council,Local Council Tax Reduction Scheme (LCTRS),LCTRS Admin,01-Jul-2021,200051833,Liberata Uk Ltd,750.49
Barrow Borough Council,Barrow town hall,Electricity,08-Jul-2021,200051921,NPower,"2,249.19"
Barrow Borough Council,HRA administration,Consultants' fees,15-Jul-2021,200052018,DtL Creative Ltd,600.00
Barrow Borough Council,Low Carbon Barrow,BugOut,08-Jul-2021,200051915,Art Gene,"4,208.01"
Barrow Borough Council,HRA Estates,Tenants content insurance,15-Jul-2021,200051996,Thistle Insurance Services Ltd,"2,085.43"
Barrow Borough Council,Suspense accounts,Income suspense account,15-Jul-2021,200052011,The Copyright Licensing Agency Ltd,"5,407.93"
Barrow Borough Council,Allotments,Water,08-Jul-2021,200051941,Water Plus Ltd,"1,309.89"
Barrow Borough Council,Capitalised Planned Maintenance,Roofs,15-Jul-2021,200051983,DLP Services (Northern) Ltd,"7,774.98"
Barrow Borough Council,HR,Childcare Vouchers,06-Jul-2021,DD060721,Sodexo,540.22
Barrow Borough Council,Revenue & Benefits,Postage stock,07-Jul-2021,DD070721,Royal Mail,"1,034.71"
Barrow Borough Council,Corporate Costs,Bank Charges,09-Jul-2021,DD090721,HSBC,824.31
Barrow Borough Council,CIS Inland Revenue Account,CIS Tax,14-Jul-2021,DD140721,HMRC,"1,109.20"
Barrow Borough Council,Technical Services,Telephone charges ,16-Jul-2021,DD160721,BT,"4,548.09"
Barrow Borough Council,Development control,Solicitors fees,19-Jul-2021,DD190721,Brown Barron Solicitors,"1,000.00"
Barrow Borough Council,Revenue & Benefits,Postage stock,21-Jul-2021,DD210721,Royal Mail,"1,370.28"
Barrow Borough Council,Corporate Costs,Professional fees,26-Jul-2021,DD260721,Allpay,"2,869.57"
Barrow Borough Council,Homelessness,Homeless support funding,29-Jul-2021,DD290721,Sorella Group,700.00
